bitfinex/quotes_BTCUSD_20250902
["timestamp","ask_amount","ask_price","bid_price","bid_amount"]
[1756831251294,0.001,110830.0,110820.0,1.65500298]
[1756831252381,0.001,110830.0,110820.0,1.49872298]
[1756831252593,0.001,110830.0,110820.0,1.65500298]
[1756831253194,0.001,110830.0,110820.0,2.3212674]
[1756831253642,0.001,110830.0,110820.0,1.65500298]
[1756831254051,0.001,110830.0,110820.0,1.63045298]
[1756831254264,0.001,110830.0,110820.0,1.47417298]
[1756831254473,0.001,110830.0,110820.0,1.63041298]
[1756831255326,0.001,110830.0,110820.0,1.47417298]
[1756831255535,0.001,110830.0,110820.0,1.63041298]
[1756831256999,0.001,110830.0,110820.0,1.58037298]
[1756831257211,0.001,110830.0,110820.0,1.42417298]
[1756831257421,0.001,110830.0,110820.0,1.58037298]
[1756831258571,0.001,110830.0,110820.0,1.42110298]
[1756831258755,0.001,110830.0,110820.0,1.57730298]
[1756831258908,0.001,110830.0,110820.0,1.58037298]
[1756831260619,0.001,110830.0,110820.0,1.42110298]
[1756831260866,0.00295,110830.0,110820.0,1.08110298]
[1756831261078,0.001,110830.0,110820.0,1.23730298]
[1756831261286,0.001,110830.0,110820.0,1.24037298]
[1756831261714,0.001,110830.0,110820.0,1.23730298]
[1756831261924,0.00295,110830.0,110820.0,1.23730298]
[1756831262348,0.00604,110830.0,110820.0,0.83518298]
[1756831262568,0.67230442,110830.0,110820.0,0.65804416]
[1756831262784,0.85276097,110830.0,110820.0,0.15951599]
[1756831262995,0.85276097,110830.0,110820.0,0.31567599]
[1756831263414,0.85276097,110830.0,110820.0,0.33661481]
[1756831263861,0.85276097,110830.0,110820.0,0.49614882]
[1756831264060,0.18649655,110830.0,110820.0,0.51708764]
[1756831264273,0.85276097,110830.0,110820.0,0.51708764]
[1756831264723,0.85276097,110830.0,110820.0,0.33661481]
[1756831267417,1.19276097,110830.0,110820.0,0.004]
[1756831267620,1.34896007,110830.0,110820.0,0.16016]
[1756831267820,1.34896007,110830.0,110820.0,0.18109882]
[1756831268241,0.93772831,110830.0,110820.0,0.18109882]
[1756831268472,0.93672831,110830.0,110820.0,0.17809882]
[1756831269029,0.9489644,110830.0,110820.0,0.17809882]
[1756831270089,0.53473264,110830.0,110820.0,0.17709882]
[1756831270299,0.9469644,110830.0,110820.0,0.17809882]
[1756831270509,0.9479644,110830.0,110820.0,0.17809882]
[1756831270722,0.9469644,110830.0,110820.0,0.17709882]
[1756831270934,0.9459644,110830.0,110820.0,0.17709882]
[1756831271142,0.9469644,110830.0,110820.0,0.17809882]
[1756831273134,0.93772831,110830.0,110820.0,0.17809882]
[1756831274102,0.94673166,110830.0,110820.0,0.17809882]
[1756831274302,0.94673166,110830.0,110820.0,0.17805882]
[1756831274758,0.5354999,110830.0,110820.0,0.02193882]
[1756831274968,0.5354999,110830.0,110820.0,0.17805882]
[1756831275177,0.94673166,110830.0,110820.0,0.17805882]
[1756831277496,1.38787114,110830.0,110820.0,0.001]
[1756831278422,1.41110114,110830.0,110820.0,0.001]
[1756831278852,1.56718114,110830.0,110820.0,0.001]
[1756831279056,0.6915799,110830.0,110820.0,0.001]
[1756831279262,0.94673166,110830.0,110820.0,0.001]
[1756831280236,1.35796342,110830.0,110820.0,0.001]
[1756831280919,0.94673166,110830.0,110820.0,0.001]
[1756831282510,1.10281166,110830.0,110820.0,0.001]
[1756831283289,0.94673166,110830.0,110820.0,0.001]
[1756831284961,0.5354999,110830.0,110820.0,0.001]
[1756831285169,0.94673166,110830.0,110820.0,0.001]
[1756831285366,0.94673166,110830.0,110820.0,0.02193882]
[1756831285591,0.18145655,110830.0,110820.0,0.12022167]
[1756831285945,0.59268831,110830.0,110820.0,0.11704167]
[1756831286154,0.59268831,110830.0,110820.0,0.2975145]
[1756831286358,0.18145655,110830.0,110820.0,0.29962764]
[1756831286572,0.41223176,110830.0,110820.0,0.29962764]
[1756831286790,0.001,110830.0,110820.0,0.29962764]
[1756831287427,0.001,110830.0,110820.0,0.45570764]
[1756831288092,0.41200675,110830.0,110820.0,0.45570764]
[1756831288300,0.41200675,110830.0,110820.0,0.49635869]
[1756831288512,0.001,110830.0,110820.0,0.89635869]
[1756831288687,0.001,110830.0,110820.0,1.30736544]
[1756831290033,0.001,110830.0,110820.0,1.57656544]
[1756831290452,0.6004525,110850.0,110830.0,0.20138071]
[1756831290660,0.6024825,110850.0,110840.0,0.25114204]
[1756831290870,0.59346131,110850.0,110840.0,0.43051626]
[1756831291852,0.59346131,110850.0,110840.0,0.43941199]
[1756831292055,0.59646131,110850.0,110840.0,0.43941199]
[1756831292464,0.59646131,110850.0,110840.0,0.28337199]
[1756831292699,0.59646131,110850.0,110840.0,0.43937199]
[1756831293295,0.59446131,110850.0,110840.0,0.43937199]
[1756831294185,0.41500675,110850.0,110840.0,0.44037199]
[1756831294409,0.004,110850.0,110840.0,0.44037199]
[1756831294615,0.59543074,110850.0,110840.0,0.44037199]
[1756831295815,0.41500675,110850.0,110840.0,0.44037199]
[1756831296041,0.004,110850.0,110840.0,1.18735874]
[1756831296650,0.004,110850.0,110840.0,0.93909756]
[1756831296853,0.004,110850.0,110840.0,0.93905756]
[1756831297066,0.004,110850.0,110840.0,0.52805081]
[1756831298101,0.004,110850.0,110840.0,0.93905756]
[1756831298690,0.004,110850.0,110840.0,0.52805081]
[1756831298900,0.004,110850.0,110840.0,0.93905756]
[1756831299329,0.004,110850.0,110840.0,0.78309756]
[1756831299547,0.004,110850.0,110840.0,0.93905756]
[1756831300199,0.004,110850.0,110840.0,0.78309756]
[1756831300410,0.004,110850.0,110840.0,0.93905756]
[1756831301075,0.004,110850.0,110840.0,0.52805081]
[1756831302069,0.004,110850.0,110840.0,0.52801081]
[1756831302288,0.60069074,110850.0,110840.0,0.49287626]
[1756831302496,0.18968399,110850.0,110840.0,0.49287626]
[1756831302762,0.60069074,110850.0,110840.0,0.51381508]
[1756831304529,0.60069074,110850.0,110840.0,0.35789508]
[1756831304734,0.60069074,110850.0,110840.0,0.51381508]
[1756831307842,0.18968399,110850.0,110840.0,0.51381508]
[1756831308050,0.60069074,110850.0,110840.0,0.51377508]
[1756831308259,0.18968399,110850.0,110840.0,0.51377508]
[1756831308476,0.60069074,110850.0,110840.0,0.51377508]
[1756831309361,0.00926,110850.0,110840.0,0.51585508]
[1756831309569,0.00608,110850.0,110840.0,0.51585508]
[1756831310200,0.004,110850.0,110840.0,0.92686183]
[1756831310439,0.004,110850.0,110840.0,0.93006183]
[1756831310983,0.004,110850.0,110840.0,0.92686183]
[1756831311684,0.004,110850.0,110840.0,1.34106858]
[1756831311897,0.004,110850.0,110840.0,1.61026858]
[1756831312104,0.004,110850.0,110840.0,1.95026858]
[1756831312308,0.004,110850.0,110840.0,1.97738287]
[1756831312773,0.004,110850.0,110840.0,1.82150287]
[1756831312987,0.004,110850.0,110840.0,1.97734287]
[1756831313587,0.003,110850.0,110840.0,2.37734287]
[1756831313788,0.59456469,110880.0,110870.0,0.02093882]
[1756831313991,0.59664469,110880.0,110870.0,0.17677882]
[1756831314396,0.59664469,110880.0,110870.0,0.02093882]
[1756831314611,0.59664469,110880.0,110870.0,0.17673882]
[1756831315329,0.59864469,110880.0,110870.0,0.17773882]
[1756831315538,0.18763794,110880.0,110870.0,0.02193882]
[1756831315748,0.59864469,110880.0,110870.0,0.17773882]
[1756831316340,0.18763794,110880.0,110870.0,0.35813026]
[1756831316584,0.59864469,110880.0,110870.0,0.35813026]
[1756831316786,0.59864469,110880.0,110870.0,0.17773882]
[1756831316959,0.59864469,110880.0,110870.0,0.02193882]
[1756831317292,0.59864469,110880.0,110870.0,0.17773882]
[1756831317868,0.59864469,110880.0,110870.0,0.35813026]
[1756831318272,0.00726,110880.0,110870.0,0.45212625]
[1756831318424,0.00408,110880.0,110870.0,0.45212625]
[1756831318629,0.41508675,110880.0,110870.0,0.45212625]
[1756831319090,0.002,110880.0,110870.0,0.926733]
[1756831319288,0.002,110880.0,110870.0,0.929933]
[1756831319875,0.002,110880.0,110870.0,0.929893]
[1756831320442,0.002,110880.0,110870.0,0.51568625]
[1756831320632,0.002,110880.0,110870.0,0.926693]
[1756831321600,0.00408,110880.0,110870.0,0.35992625]
[1756831321832,0.18763518,110880.0,110870.0,0.51356625]
[1756831322608,0.59864193,110880.0,110870.0,0.78276625]
[1756831322901,0.41826675,110880.0,110870.0,0.62704625]
[1756831323104,0.41826675,110880.0,110870.0,0.78276625]
[1756831323729,0.00408,110880.0,110870.0,0.78484625]
[1756831324150,0.00408,110880.0,110870.0,1.040133]
[1756831324361,0.00726,110880.0,110870.0,0.78484625]
[1756831324774,0.00408,110880.0,110870.0,0.78484625]
[1756831324979,0.002,110880.0,110870.0,0.78484625]
[1756831325394,0.00408,110880.0,110870.0,0.78484625]
[1756831326160,0.00408,110880.0,110870.0,0.62912625]
[1756831326364,0.00726,110880.0,110870.0,0.79393516]
[1756831326568,0.002,110880.0,110870.0,0.63825516]
[1756831326763,0.002,110880.0,110870.0,0.79393516]
[1756831327104,0.00408,110880.0,110870.0,0.79393516]
[1756831327258,0.00726,110880.0,110870.0,0.79393516]
[1756831328348,1.04237476,110880.0,110870.0,0.44665481]
[1756831328557,1.04237476,110880.0,110870.0,0.33313481]
[1756831328558,1.0395564,110880.0,110870.0,0.33313481]
[1756831328770,1.40829226,110880.0,110870.0,0.001]
[1756831328985,1.40829226,110880.0,110870.0,0.15668]
[1756831329226,1.3795564,110880.0,110870.0,0.17761882]
[1756831329455,0.52763518,110880.0,110870.0,0.17761882]
[1756831329668,1.34964868,110880.0,110870.0,0.17761882]
[1756831329879,1.37949032,110880.0,110870.0,0.17761882]
[1756831330089,1.40430032,110880.0,110870.0,0.17761882]
[1756831330305,0.52763518,110880.0,110870.0,0.17761882]
[1756831330536,1.34964868,110880.0,110870.0,0.17761882]
[1756831330967,1.37949032,110880.0,110870.0,0.02197882]
[1756831331307,1.37949032,110880.0,110870.0,0.17761882]
[1756831331512,1.37949032,110880.0,110870.0,0.00104]
[1756831331513,1.81530707,110880.0,110870.0,0.00104]
[1756831331716,1.81530707,110880.0,110870.0,0.15668]
[1756831332178,1.97094707,110880.0,110870.0,0.00104]
[1756831332618,1.55994032,110880.0,110870.0,0.00104]
[1756831332976,1.58705797,110880.0,110870.0,0.00104]
[1756831333184,1.53240633,110880.0,110870.0,0.00104]
[1756831333385,1.37676633,110880.0,110870.0,0.00104]
[1756831333997,1.40660797,110880.0,110870.0,0.00104]
[1756831334756,1.84242472,110880.0,110870.0,0.00104]
[1756831335902,2.0525691,110880.0,110870.0,0.00104]
[1756831336592,2.14448509,110880.0,110870.0,0.00104]
[1756831336938,2.14444509,110880.0,110870.0,0.00104]
[1756831337149,2.14448509,110880.0,110870.0,0.00104]
[1756831337421,1.98884509,110880.0,110870.0,0.00104]
[1756831337729,2.08586759,110880.0,110870.0,0.00104]
[1756831337930,2.07953434,110880.0,110870.0,0.00104]
[1756831338161,1.5518016,110880.0,110870.0,0.00104]
[1756831338357,1.3962016,110880.0,110870.0,0.00104]
[1756831338709,1.37676633,110880.0,110870.0,0.15664]
[1756831339147,0.59338193,110880.0,110870.0,0.18276882]
[1756831339373,0.59338193,110880.0,110870.0,0.27468481]
[1756831340391,0.59338193,110880.0,110870.0,0.27164481]
[1756831340834,1.00438868,110880.0,110870.0,0.27164481]
[1756831341053,1.00649868,110880.0,110870.0,0.27164481]
[1756831342847,0.18448518,110880.0,110870.0,0.27164481]
[1756831343049,1.00649868,110880.0,110870.0,0.27164481]
[1756831343246,1.00949868,110880.0,110870.0,0.26949481]
[1756831343850,1.42050543,110880.0,110870.0,0.02197882]
[1756831344016,1.42050543,110880.0,110870.0,0.1566]
[1756831345972,1.00949868,110880.0,110870.0,0.1566]
[1756831346180,0.18748518,110880.0,110870.0,0.1566]
[1756831346360,1.00949868,110880.0,110870.0,0.15875]
[1756831346569,1.00949868,110880.0,110870.0,0.17968882]
[1756831346570,1.00649868,110880.0,110870.0,0.17968882]
[1756831346750,1.00949868,110880.0,110870.0,0.17753882]
[1756831347162,1.00949868,110880.0,110870.0,0.17968882]
[1756831347519,1.00649868,110880.0,110870.0,0.17968882]
[1756831349024,1.00949868,110880.0,110870.0,0.17753882]
[1756831349463,1.00908668,110880.0,110870.0,0.17753882]
[1756831350710,1.00908668,110880.0,110870.0,0.00104]
[1756831350914,1.37892832,110880.0,110870.0,0.00104]
[1756831351125,1.37892832,110880.0,110870.0,0.15656]
[1756831351426,1.40604428,110880.0,110870.0,0.15656]
[1756831351832,1.56156428,110880.0,110870.0,0.00104]
[1756831352074,1.65348027,110880.0,110870.0,0.00104]
[1756831352311,1.00202549,110850.0,110840.0,0.06356]
[1756831352578,0.18044027,110840.0,110830.0,0.2075724]
[1756831352792,0.59124102,110840.0,110830.0,0.24958599]
[1756831352999,0.59124102,110840.0,110820.0,0.13710631]
[1756831353000,0.18045655,110830.0,110820.0,0.13710631]
[1756831353212,0.5912573,110830.0,110820.0,0.43043395]
[1756831353480,0.5912573,110830.0,110820.0,0.3866923]
[1756831353683,0.5912573,110830.0,110820.0,0.33712481]
[1756831353889,0.5912573,110830.0,110820.0,0.51759764]
[1756831354442,0.5922573,110830.0,110820.0,0.51959764]
[1756831354660,1.00516805,110830.0,110820.0,0.15962599]
[1756831354860,0.5973673,110830.0,110820.0,0.31514599]
[1756831355058,0.5973673,110830.0,110820.0,0.15752]
[1756831355357,0.5973673,110830.0,110820.0,0.17845882]
[1756831355358,0.62720894,110830.0,110820.0,0.17845882]
[1756831355758,0.21640819,110830.0,110820.0,0.15852]
[1756831355955,0.18145655,110830.0,110820.0,0.18160882]
[1756831356157,0.5922573,110830.0,110820.0,0.18160882]
[1756831356582,0.5922573,110830.0,110820.0,0.27352481]
[1756831356784,0.5922573,110830.0,110820.0,0.45703764]
[1756831357350,0.5922573,110830.0,110820.0,0.27656481]
[1756831357549,0.5922573,110830.0,110820.0,0.27352481]
[1756831357550,0.5943673,110830.0,110820.0,0.27352481]
[1756831357857,0.5922573,110830.0,110820.0,0.27352481]
[1756831358500,0.5922573,110830.0,110820.0,0.45399764]
[1756831359328,0.5922573,110830.0,110820.0,0.45716764]
[1756831359535,0.84799402,110830.0,110820.0,0.45716764]
[1756831359961,0.001,110830.0,110820.0,0.45716764]
[1756831360629,0.18145655,110830.0,110820.0,0.30164764]
[1756831360868,0.18145655,110830.0,110820.0,0.45716764]
[1756831361075,0.85334402,110830.0,110820.0,0.11585481]
[1756831361281,0.85334402,110830.0,110820.0,0.27137481]
[1756831362097,0.001,110830.0,110820.0,0.45718764]
[1756831362300,0.18145655,110830.0,110820.0,0.27671481]
[1756831362475,0.85012402,110830.0,110820.0,0.11802481]
[1756831362685,0.85012402,110830.0,110820.0,0.27354481]
[1756831363287,0.18358655,110830.0,110820.0,0.27354481]
[1756831363539,0.85012402,110830.0,110820.0,0.45401764]
[1756831363691,0.18358655,110830.0,110820.0,0.45401764]
[1756831363886,0.001,110830.0,110820.0,0.45718764]
[1756831368021,0.001,110830.0,110820.0,1.73292511]
[1756831368628,0.001,110830.0,110820.0,2.13292511]
[1756831369361,0.001,110830.0,110820.0,2.18292511]
[1756831369567,0.001,110830.0,110820.0,2.24791149]
[1756831369773,0.001,110830.0,110820.0,1.60560402]
[1756831369982,0.001,110830.0,110820.0,2.27214149]
[1756831371179,0.001,110830.0,110820.0,2.2992549]
[1756831371600,0.001,110830.0,110820.0,2.2992149]
[1756831372391,0.93269771,110880.0,110870.0,0.18039144]
[1756831372392,0.25714149,110880.0,110870.0,0.18039144]
[1756831372601,0.25927149,110880.0,110870.0,0.42881174]
[1756831372785,0.25927149,110880.0,110870.0,0.42774743]
[1756831372980,0.18572518,110880.0,110870.0,0.42774743]
[1756831373432,0.18672518,110880.0,110870.0,0.42874743]
[1756831373844,0.18672518,110880.0,110870.0,0.27330743]
[1756831374054,0.18672518,110880.0,110870.0,0.42874743]
[1756831375129,0.18672518,110880.0,110870.0,0.4400018]
[1756831375130,0.00313,110880.0,110870.0,0.4400018]
[1756831375336,0.002,110880.0,110870.0,0.46094062]
[1756831376280,0.002,110880.0,110870.0,0.46411062]
[1756831376751,0.002,110880.0,110870.0,0.86094062]
[1756831378119,0.002,110880.0,110870.0,0.86411062]
[1756831378812,0.002,110880.0,110870.0,0.86407062]
[1756831379394,0.002,110880.0,110870.0,0.70867062]
[1756831379631,0.002,110880.0,110870.0,0.86407062]
[1756831379860,0.002,110880.0,110870.0,0.86090062]
[1756831380261,0.00735,110880.0,110870.0,0.86090062]
[1756831380463,0.59831391,110880.0,110870.0,0.70333062]
[1756831380673,0.41793873,110880.0,110870.0,0.85873062]
[1756831381290,0.41793873,110880.0,110870.0,0.70333062]
[1756831381493,0.41793873,110880.0,110870.0,0.85873062]
[1756831381702,0.41793873,110880.0,110870.0,0.45873062]
[1756831381902,0.41793873,110880.0,110870.0,0.46090062]
[1756831382176,0.41793873,110880.0,110870.0,0.86090062]
[1756831382632,0.00413,110880.0,110870.0,0.86090062]
[1756831382824,0.41471873,110880.0,110870.0,0.86090062]
[1756831383996,0.002,110880.0,110870.0,0.86407062]
[1756831384009,0.002,110880.0,110870.0,1.27465935]
[1756831384263,0.002,110880.0,110870.0,1.61465935]
[1756831384766,0.002,110880.0,110870.0,1.20407062]
[1756831385016,0.002,110880.0,110870.0,1.04867062]
[1756831385264,0.001,110880.0,110870.0,1.20403062]
[1756831385475,0.41058873,110890.0,110880.0,0.201314]
[1756831385686,0.59415372,110900.0,110890.0,0.20129773]
[1756831385896,0.59415372,110900.0,110890.0,0.51213372]
[1756831385897,0.59628138,110900.0,110890.0,0.51213372]
[1756831386821,0.00535,110900.0,110890.0,0.51213372]
[1756831387075,0.001,110900.0,110890.0,0.51630372]
[1756831387330,0.001,110900.0,110890.0,0.97122471]
[1756831388237,0.001,110900.0,110890.0,1.31122471]
[1756831388694,0.001,110900.0,110890.0,1.27394471]
[1756831388961,0.001,110900.0,110890.0,1.42926471]
[1756831389601,0.001,110900.0,110890.0,2.08274684]
[1756831389815,0.00317,110940.0,110930.0,0.20123269]
[1756831390059,0.00514,110940.0,110930.0,0.51202868]
[1756831390814,0.18541762,110940.0,110930.0,0.51202868]
[1756831391249,0.18541762,110940.0,110930.0,0.51198868]
[1756831392165,0.18641762,110940.0,110930.0,0.55318925]
[1756831392721,0.00614,110940.0,110930.0,0.55318925]
[1756831392933,0.18641762,110940.0,110930.0,0.39790925]
[1756831393141,0.18641762,110940.0,110930.0,0.55318925]
[1756831393324,0.18641762,110940.0,110930.0,0.37289538]
[1756831393558,0.18641762,110940.0,110930.0,0.55318925]
[1756831393773,0.18641762,110940.0,110930.0,0.82238925]
[1756831394254,0.18641762,110940.0,110930.0,0.44661481]
[1756831394467,0.85148848,110940.0,110930.0,0.48904]
[1756831394676,0.85148848,110940.0,110930.0,0.50997882]
[1756831394884,0.85148848,110940.0,110930.0,0.48904]
[1756831395310,0.85148848,110940.0,110930.0,0.50997882]
[1756831395762,0.85148848,110940.0,110930.0,0.60189481]
[1756831395972,0.18641762,110940.0,110930.0,0.44661481]
[1756831396180,0.85148848,110940.0,110930.0,0.60185481]
[1756831396390,0.85148848,110940.0,110930.0,0.44661481]
[1756831396861,0.85148848,110940.0,110930.0,0.50993882]
[1756831397072,0.88133012,110940.0,110930.0,0.29113882]
[1756831397280,0.21625926,110940.0,110930.0,0.44637882]
[1756831397485,0.88133012,110940.0,110930.0,0.44637882]
[1756831397932,0.88133012,110940.0,110930.0,0.29113882]
[1756831398173,0.88133012,110940.0,110930.0,0.44637882]
[1756831398397,1.24593012,110940.0,110930.0,0.42544]
[1756831398842,1.24593012,110940.0,110930.0,0.15624]
[1756831400306,1.26064543,110940.0,110930.0,0.001]
[1756831400572,1.39127584,110940.0,110930.0,0.001]
[1756831400856,1.44432461,110940.0,110930.0,0.001]
[1756831401109,1.44432461,110940.0,110910.0,0.15524]
[1756831401110,0.52031013,110920.0,110910.0,0.15524]
[1756831401594,1.19052099,110920.0,110910.0,0.15524]
[1756831402013,1.19052099,110920.0,110910.0,0.17617882]
[1756831402439,1.19052099,110920.0,110910.0,0.17717882]
[1756831402601,1.19252099,110920.0,110910.0,0.17717882]
[1756831405554,1.19252099,110920.0,110910.0,0.001]
[1756831405794,1.26636845,110920.0,110910.0,0.001]
[1756831406025,1.27268564,110920.0,110910.0,0.001]
[1756831406243,1.28110909,110920.0,110910.0,0.001]
[1756831406470,1.27268564,110920.0,110910.0,0.001]
[1756831406882,1.28110934,110920.0,110910.0,0.001]
[1756831407228,1.27268564,110920.0,110910.0,0.001]
[1756831408941,1.28110882,110920.0,110910.0,0.001]
[1756831409539,1.62683744,110920.0,110910.0,0.001]
[1756831410335,1.74306554,110920.0,110910.0,0.001]
[1756831410686,1.62027672,110920.0,110910.0,0.001]
[1756831410892,1.77017702,110920.0,110910.0,0.001]
[1756831411286,0.52034265,110900.0,110890.0,0.06672]
[1756831411486,0.18035891,110890.0,110880.0,0.24968513]
[1756831411686,0.61611675,110890.0,110880.0,0.24968513]
[1756831411914,0.62234906,110890.0,110880.0,0.24968513]
[1756831412099,0.62234906,110890.0,110880.0,0.17613882]
[1756831412741,0.62334906,110890.0,110880.0,0.17713882]
[1756831413208,1.42099044,110890.0,110880.0,0.001]
[1756831414048,0.18037518,110880.0,110870.0,0.17613882]
[1756831414252,0.61099328,110880.0,110870.0,0.17819882]
[1756831414479,0.18037518,110880.0,110870.0,0.17819882]
[1756831414678,0.61099328,110880.0,110870.0,0.17819882]
[1756831414884,0.61014492,110880.0,110870.0,0.17819882]
[1756831415095,0.60817492,110880.0,110870.0,0.17819882]
[1756831415302,0.18037518,110880.0,110870.0,0.17819882]
[1756831415510,0.18037518,110880.0,110870.0,0.18419882]
[1756831415511,0.61199328,110880.0,110870.0,0.18419882]
[1756831415738,0.60917492,110880.0,110870.0,0.18419882]
[1756831415960,0.60917492,110880.0,110870.0,0.18619882]
[1756831416349,0.61114492,110880.0,110870.0,0.18619882]
[1756831418531,1.04212466,110880.0,110870.0,0.02893882]
[1756831418743,1.38212466,110880.0,110870.0,0.02893882]
[1756831418951,1.4119663,110880.0,110870.0,0.18413882]
[1756831419358,1.38212466,110880.0,110870.0,0.18413882]
[1756831419806,0.52652518,110880.0,110870.0,0.18413882]
[1756831420010,1.38212466,110880.0,110870.0,0.18413882]
[1756831420422,0.52652518,110880.0,110870.0,0.18413882]
[1756831420626,1.38212466,110880.0,110870.0,0.18413882]
[1756831421103,1.38212466,110880.0,110870.0,0.1632]
[1756831421532,1.38212466,110880.0,110870.0,0.16534]
[1756831421739,1.38212466,110880.0,110870.0,0.1632]
[1756831421918,0.94917492,110880.0,110870.0,0.18627882]
[1756831422159,0.001,110880.0,110870.0,0.28135481]
[1756831422370,0.001,110880.0,110870.0,0.46174625]
[1756831426206,0.001,110880.0,110870.0,0.86174625]
[1756831428464,0.60917492,110880.0,110870.0,0.86170625]
[1756831428674,0.60917492,110880.0,110870.0,0.45854625]
[1756831429292,0.42879974,110880.0,110870.0,0.30338625]
[1756831429495,0.42879974,110880.0,110870.0,0.46170625]
[1756831430440,0.001,110880.0,110870.0,0.46170625]
[1756831431513,0.42879974,110880.0,110870.0,0.46170625]
[1756831433241,0.001,110880.0,110870.0,0.46170625]
[1756831436127,0.001,110880.0,110870.0,0.30654625]
[1756831436331,0.60917492,110880.0,110870.0,0.30338625]
[1756831436509,0.61447492,110880.0,110870.0,0.30124625]
[1756831436696,0.61447492,110880.0,110870.0,0.45640625]
[1756831436899,0.61447492,110880.0,110870.0,0.27601481]
[1756831437167,0.61447492,110880.0,110870.0,0.30338625]
[1756831437168,0.61129492,110880.0,110870.0,0.30338625]
[1756831437295,0.61129492,110880.0,110870.0,0.27815481]
[1756831437501,0.61447492,110880.0,110870.0,0.27815481]
[1756831438054,0.61447492,110880.0,110870.0,0.12085481]
[1756831438271,0.61447492,110880.0,110870.0,0.16312]
[1756831438272,1.38227466,110880.0,110870.0,0.16312]
[1756831438473,1.4121163,110880.0,110870.0,0.16312]
[1756831439093,1.4364663,110880.0,110870.0,0.16312]
[1756831439307,1.4354663,110880.0,110870.0,0.15712]
[1756831439504,1.4364663,110880.0,110870.0,0.15912]
[1756831439660,1.4354663,110880.0,110870.0,0.15712]
[1756831439857,1.4354663,110880.0,110870.0,0.15512]
[1756831440068,1.4364663,110880.0,110870.0,0.15612]
[1756831440271,1.4364663,110880.0,110870.0,0.001]
[1756831441031,1.4374663,110880.0,110870.0,0.001]
[1756831441551,1.45688859,110880.0,110870.0,0.001]
[1756831441758,1.46322207,110880.0,110870.0,0.001]
[1756831442208,1.61834207,110880.0,110870.0,0.001]
[1756831443060,1.46322207,110880.0,110870.0,0.001]
[1756831443294,1.61834207,110880.0,110870.0,0.001]
[1756831444416,1.46322207,110880.0,110870.0,0.001]
[1756831444636,1.61834207,110880.0,110870.0,0.001]
[1756831444818,1.61200859,110880.0,110870.0,0.001]
[1756831445489,1.45688859,110880.0,110870.0,0.001]
[1756831445691,1.61200859,110880.0,110870.0,0.001]
[1756831447262,1.42704695,110880.0,110870.0,0.001]
[1756831447480,1.55781695,110880.0,110870.0,0.001]
[1756831448932,1.58493631,110880.0,110870.0,0.001]
[1756831449341,1.42981631,110880.0,110870.0,0.001]
[1756831449523,1.58493631,110880.0,110870.0,0.001]
[1756831449964,1.61477795,110880.0,110870.0,0.001]
[1756831451062,1.7354298,110880.0,110870.0,0.001]
[1756831451273,1.55679037,110880.0,110870.0,0.001]
[1756831451483,1.71301615,110880.0,110870.0,0.001]
[1756831451682,1.68317451,110880.0,110870.0,0.001]
[1756831452035,1.52805451,110880.0,110870.0,0.001]
[1756831452268,1.6768523,110880.0,110870.0,0.001]
[1756831452666,1.5217323,110880.0,110870.0,0.001]
[1756831453067,1.6768523,110880.0,110870.0,0.001]
[1756831454533,1.5217323,110880.0,110870.0,0.001]
[1756831454690,1.6768523,110880.0,110870.0,0.001]
[1756831458234,1.73018816,110880.0,110870.0,0.001]
[1756831459202,1.73018816,110880.0,110850.0,0.02093882]
[1756831459412,1.73018816,110880.0,110830.0,0.0636]
[1756831459413,0.52042399,110850.0,110820.0,0.07663631]
[1756831459611,1.35208771,110830.0,110810.0,0.00309]
[1756831459793,0.52947937,110830.0,110820.0,0.07663631]
[1756831459993,0.52947937,110830.0,110820.0,0.09967513]
[1756831460423,0.52947937,110830.0,110820.0,0.02612882]
[1756831460623,0.53145937,110830.0,110820.0,0.0021]
[1756831460785,0.18048912,110810.0,110800.0,0.29531631]
[1756831460992,0.59179329,110810.0,110800.0,0.3893323]
[1756831461233,0.59179329,110810.0,110800.0,0.33672481]
[1756831461434,1.00309746,110810.0,110800.0,0.09710599]
[1756831461589,0.60901304,110810.0,110800.0,0.09710599]
[1756831461791,0.60901304,110810.0,110800.0,0.11804481]
[1756831462103,0.60901304,110810.0,110800.0,0.11495481]
[1756831462312,0.61099304,110810.0,110800.0,0.0021]
[1756831462713,0.61099304,110810.0,110800.0,0.02603882]
[1756831462714,0.62026831,110810.0,110800.0,0.02603882]
[1756831463161,0.62024831,110810.0,110800.0,0.02403882]
[1756831463345,0.61826831,110810.0,110800.0,0.02403882]
[1756831463558,0.62026831,110810.0,110800.0,0.02603882]
[1756831463962,0.62541831,110810.0,110800.0,0.02603882]
[1756831464367,0.62026831,110810.0,110800.0,0.02603882]
[1756831465105,0.62224831,110810.0,110800.0,0.02603882]
[1756831465427,0.62026831,110810.0,110800.0,0.02603882]
[1756831467770,0.62224831,110810.0,110800.0,0.02603882]
[1756831467971,0.62541831,110810.0,110800.0,0.02393882]
[1756831468197,0.65525958,110810.0,110800.0,0.02393882]
[1756831469633,1.0837835,110810.0,110800.0,0.02393882]
[1756831471469,0.89378216,110810.0,110800.0,0.02393882]
[1756831472619,0.89378216,110810.0,110800.0,0.003]
[1756831472797,1.38886216,110810.0,110800.0,0.003]
[1756831473633,1.23378216,110810.0,110800.0,0.003]
[1756831473899,1.38882216,110810.0,110800.0,0.003]
[1756831474519,0.74891127,110810.0,110800.0,0.003]
[1756831474766,1.41595777,110810.0,110800.0,0.003]
[1756831474939,1.50787376,110810.0,110800.0,0.003]
[1756831475103,1.37214001,110810.0,110800.0,0.003]
[1756831475335,1.52718001,110810.0,110800.0,0.003]
[1756831475711,0.52050541,110800.0,110790.0,0.0004]
[1756831475909,1.18755191,110800.0,110790.0,0.0004]
[1756831476157,1.34774191,110800.0,110790.0,0.0004]
[1756831477408,1.19270191,110800.0,110790.0,0.0004]
[1756831477618,1.19270191,110800.0,110790.0,0.0025]
[1756831478136,1.19370191,110800.0,110790.0,0.0025]
[1756831478370,1.19570191,110800.0,110790.0,0.0045]
[1756831478993,1.19253191,110800.0,110790.0,0.0045]
[1756831479201,1.19573191,110800.0,110790.0,0.0045]
[1756831479716,1.19253191,110800.0,110790.0,0.0045]
[1756831480247,1.19573191,110800.0,110790.0,0.0024]
[1756831480535,1.19253191,110800.0,110790.0,0.00438]
[1756831480740,1.19573191,110800.0,110790.0,0.00438]